[Event "XIX Sants Open 2017"]
[Site "Cotxeres de Sants"]
[Date "2017.08.22"]
[Round "5"]
[White "Garcia Ruiz, Adrian"]
[Black "Urgel Yvorra, Marc"]
[Result "1/2-1/2"]
[ECO "B48"]
[WhiteElo "1940"]
[BlackElo "1857"]
[Annotator "NA"]
[PlyCount "48"]
[EventDate "2017.??.??"]
[EventType "swiss"]
[EventCountry "ESP"]
[SourceTitle "playchess.com"]
[Source "ChessBase"]
[SourceQuality "1"]
[TimeControl "40/5400+30:1800+30"]

1. e4 c5 2. Nf3 e6 3. d4 cxd4 4. Nxd4 Nc6 5. Nc3 Qc7 6. Be3 a6 7. Qd2 Nf6 8. f3 Ne5 9. O-O-O Bb4 10. Kb1 d5 11. Bd3 Nxd3 12. cxd3 e5 13. Nde2 d4 14. Nxd4 exd4 15. Bxd4 Be6 16. Qg5 Qa5 17. Qxg7 Rg8 18. Qxf6 Bxc3 19. Bxc3 Qxa2+ 20. Kc1 Rxg2 21. Rd2 Qa1+ 22. Kc2 Qa4+ 23. Kc1 Qa1+ 24. Kc2 Qa4+ 1/2-1/2

[Event "XIX Sants Open 2017"]
[Site "Cotxeres de Sants"]
[Date "2017.08.22"]
[Round "5"]
[White "Fernandez Felguera, Agustin"]
[Black "Petit Montes, Marc"]
[Result "0-1"]
[ECO "B10"]
[WhiteElo "1924"]
[BlackElo "1948"]
[Annotator "NA RC"]
[PlyCount "83"]
[EventDate "2017.??.??"]
[EventType "swiss"]
[EventCountry "ESP"]
[SourceTitle "playchess.com"]
[Source "ChessBase"]
[SourceQuality "1"]
[TimeControl "40/5400+30:1800+30"]

1. e4 {[%emt 0:00:00]} c6 {[%emt 0:00:02]} 2. c4 {[%emt 0:00:02]} d5 {[%emt 0:00:10]} 3. exd5 {[%emt 0:00:26]} cxd5 {[%emt 0:00:07]} 4. cxd5 {[%emt 0:00:06]} Qxd5 {[%emt 0:00:04]} 5. Nc3 {[%emt 0:00:07]} Qd8 {[%emt 0:00:19]} 6. d4 {[%emt 0:00:10]} Nf6 {[%emt 0:00:49]} 7. Bc4 {[%emt 0:00:11]} e6 {[%emt 0:00:31]} 8. Nf3 {[%emt 0:00:25]} Nc6 {[%emt 0:01:46]} 9. O-O {[%emt 0:00:30]} Be7 {[%emt 0:00:07]} 10. Bg5 {[%emt 0:06:29]} O-O {[%emt 0:00:57]} 11. a3 {[%emt 0:02:53]} a6 {[%emt 0:00:17]} 12. Qd3 {[%emt 0:00:38]} b5 {[%emt 0:01:25]} 13. Bb3 {[%emt 0:01:05]} Bb7 {[%emt 0:01:05]} 14. Bc2 {[%emt 0:00:12]} g6 {[%emt 0:01:52] D27: Queen's Gambit Accepted: Classical main line: 7 e4!? and 7 a4} 15. Rad1 {[%emt 0:18:31]} (15. Rfd1 Rc8 16. Rac1 Na5 17. Bh6 Re8 18. Ne5 Nc4 19. Nxc4 Rxc4 20. Bb3 Rc7 21. Bf4 Bd6 22. Qe3 Bd5 23. Bc2 Bxf4 24. Qxf4 Qe7 25. Rd3 Bc4 26. Rh3 e5 27. dxe5 Qxe5 28. Qxe5 Rxe5 29. f4 {½-½ (28) Baumbach,F (2454)-Pereira,A (2505) ICCF email 2007}) 15... Nd5 {[%emt 0:08:04]} 16. Ne4 $146 {[%emt 0:04:17]} ({Find the theoretical novelty and annotate with similar games:} 16. Bxe7 Ncxe7 17. Ne4 Nf5 18. Ne5 Qh4 19. Qf3 Qf4 20. Qh3 h5 21. g3 Qh6 22. Nc5 {1-0 (50) Murtazin,B (2173)-Ly,D (1872) Budva 2013}) 16... Bxg5 {[%emt 0:15:01]} 17. Nfxg5 {[%emt 0:07:12]} Nce7 {[%emt 0:15:42]} 18. Nc5 {[%emt 0:07:12]} Bc6 {[%emt 0:01:50]} 19. Qh3 {[%emt 0:05:31]} h5 {[%emt 0:08:00]} 20. f4 {[%emt 0:07:37]} Nf5 {[%emt 0:03:14]} 21. Bxf5 {[%emt 0:07:14]} exf5 {[%emt 0:02:16]} 22. Qg3 {[%emt 0:02:31]} Re8 {[%emt 0:09:25]} 23. Rfe1 {[%emt 0:00:55]} Rxe1+ {[%emt 0:03:08]} 24. Rxe1 {[%emt 0:00:03]} Nf6 {[%emt 0:00:28]} 25. Qf2 {[%emt 0:02:28]} Qd6 {[%emt 0:04:36]} 26. Qd2 {[%emt 0:06:45]} a5 {[%emt 0:04:55]} 27. Rf1 {[%emt 0:06:46]} Rd8 {[%emt 0:02:54]} 28. Nf3 $2 {[%emt 0:04:29]} (28. Rd1 {is tougher.}) 28... Bxf3 $1 {[%emt 0:02:30]} 29. Rxf3 {[%emt 0:00:10]} Qxc5 {[%emt 0:00:33]} 30. dxc5 {[%emt 0:00:33]} Rxd2 {[%emt 0:00:07]} 31. Rb3 {[%emt 0:00:06] [#]} b4 $1 {[%emt 0:04:41]} 32. axb4 {[%emt 0:01:34]} axb4 {[%emt 0:00:05]} 33. Rxb4 {[%emt 0:00:16]} Ne4 {[%emt 0:00:47]} 34. g3 {[%emt 0:00:15]} Nxc5 {[%emt 0:00:08]} 35. Rb8+ {[%emt 0:00:12]} Kg7 {[%emt 0:00:11]} 36. b4 {[%emt 0:00:04]} Nd7 {[%emt 0:01:57]} 37. Rd8 {[%emt 0:00:25]} Kf6 {[%emt 0:00:10]} 38. Rc8 {[%emt 0:00:58]} Rb2 {[%emt 0:00:50]} 39. Rc4 {[%emt 0:00:41]} Ke6 {[%emt 0:00:13]} 40. Rc6+ {[%emt 0:00:00]} Kd5 {[%emt 0:01:12]} 41. Rc7 {[%emt 0:00:22]} Kd6 {[%emt 0:00:23]} 42. Rc4 $19 {[%emt 0:00:18]} 0-1

[Event "XIX Sants Open 2017"]
[Site "Cotxeres de Sants"]
[Date "2017.08.22"]
[Round "5"]
[White "Puig Cruz, Albert"]
[Black "Lopez Oliva, Victor"]
[Result "0-1"]
[ECO "B01"]
[WhiteElo "1581"]
[BlackElo "1530"]
[Annotator "NA RC"]
[PlyCount "124"]
[EventDate "2017.??.??"]
[EventType "swiss"]
[EventCountry "ESP"]
[SourceTitle "playchess.com"]
[Source "ChessBase"]
[SourceQuality "1"]
[TimeControl "40/5400+30:1800+30"]

1. e4 {[%emt 0:00:00]} d5 {[%emt 0:00:22]} 2. exd5 {[%emt 0:00:00]} Qxd5 {[%emt 0:00:37]} 3. Nc3 {[%emt 0:00:30]} Qa5 {[%emt 0:00:07]} 4. d4 {[%emt 0:00:30]} Nf6 {[%emt 0:01:00]} 5. Nf3 {[%emt 0:01:07]} Bf5 {[%emt 0:02:36]} 6. Bc4 {[%emt 0:02:11]} c6 {[%emt 0:03:11]} 7. Bd2 {[%emt 0:01:39]} e6 {[%emt 0:00:35]} 8. Bb3 {[%emt 0:05:08]} Nbd7 {[%emt 0:07:43]} 9. Qe2 {[%emt 0:05:45]} Bb4 {[%emt 0:02:52]} 10. Nh4 {[%emt 0:04:56]} Bg6 {[%emt 0:19:12]} 11. Nxg6 {[%emt 0:03:08]} hxg6 {[%emt 0:00:06]} 12. O-O-O {[%emt 0:02:49]} O-O-O {[%emt 0:07:42]} 13. Ne4 {[%emt 0:07:46]} Bxd2+ {[%emt 0:03:18]} 14. Rxd2 {[%emt 0:00:21]} Nxe4 {[%emt 0:01:26]} 15. Qxe4 {[%emt 0:00:14]} Nf6 {[%emt 0:00:34]} 16. Qe2 {[%emt 0:01:53]} Qc7 {[%emt 0:06:46]} 17. g3 {[%emt 0:06:28]} Rd6 {[%emt 0:06:28]} 18. c3 {[%emt 0:03:03]} Rdd8 {[%emt 0:06:28]} 19. f3 {[%emt 0:06:11]} Nd5 {[%emt 0:03:13]} 20. Re1 {[%emt 0:05:29]} Rh5 {[%emt 0:02:51]} 21. Qf2 {[%emt 0:08:08]} Kb8 {[%emt 0:01:53]} 22. Kb1 {[%emt 0:02:48]} Nf6 {[%emt 0:02:18]} 23. Rde2 {[%emt 0:05:47]} Rdh8 {[%emt 0:01:31]} 24. h4 {[%emt 0:02:22]} g5 {[%emt 0:00:52]} 25. hxg5 {[%emt 0:02:19]} Rxg5 {[%emt 0:00:10]} 26. f4 {[%emt 0:02:48]} Rgh5 {[%emt 0:04:16]} 27. Qf3 {[%emt 0:00:50]} Nd5 {[%emt 0:01:52]} 28. Bc2 {[%emt 0:01:41]} Qe7 {[%emt 0:01:13]} 29. Be4 {[%emt 0:02:35]} Qf6 {[%emt 0:01:36]} 30. Qd3 {[%emt 0:00:39]} g6 {[%emt 0:02:04]} 31. a3 {[%emt 0:01:22]} Rh3 {[%emt 0:00:59]} 32. Bxd5 {[%emt 0:02:21]} cxd5 {[%emt 0:00:13]} 33. Qf3 {[%emt 0:01:04]} g5 {[%emt 0:02:51]} 34. Rg2 {[%emt 0:01:48]} gxf4 {[%emt 0:01:07]} 35. Qxf4+ {[%emt 0:00:16]} Qxf4 {[%emt 0:00:05]} 36. gxf4 {[%emt 0:00:06]} Rf3 {[%emt 0:00:11]} 37. Rg4 {[%emt 0:00:17]} Rh6 {[%emt 0:00:03]} 38. Reg1 {[%emt 0:00:23]} Rf6 {[%emt 0:00:14]} 39. R1g2 {[%emt 0:07:59]} R3xf4 {[%emt 0:00:56]} 40. Rxf4 {[%emt 0:00:00]} Rxf4 {[%emt 0:00:03]} 41. Kc2 {[%emt 0:00:29]} Kc7 {[%emt 0:00:35]} 42. Kd3 {[%emt 0:02:40]} Kd6 {[%emt 0:04:12]} 43. Ke2 {[%emt 0:00:26]} a6 {[%emt 0:01:01]} 44. Rg7 {[%emt 0:01:02]} Kc6 {[%emt 0:01:57]} 45. Rg8 {[%emt 0:00:38]} f6 {[%emt 0:02:02]} 46. Rg7 {[%emt 0:02:17]} e5 {[%emt 0:01:20]} 47. dxe5 {[%emt 0:01:43]} fxe5 {[%emt 0:00:49]} 48. Re7 {[%emt 0:00:17]} e4 {[%emt 0:01:50]} 49. Rg7 {[%emt 0:01:11]} Rf3 {[%emt 0:01:12]} 50. Re7 {[%emt 0:03:10]} Rh3 {[%emt 0:03:02]} 51. Rf7 {[%emt 0:01:04]} Rh2+ {[%emt 0:00:35]} 52. Rf2 {[%emt 0:00:08]} Rxf2+ {[%emt 0:00:12]} 53. Kxf2 Kc5 54. b3 {[%emt 0:07:11]} d4 {[%emt 0:00:42]} 55. Ke2 {[%emt 0:00:18]} dxc3 {[%emt 0:00:40]} 56. Ke3 {[%emt 0:00:25]} c2 {[%emt 0:00:21]} 57. Kd2 {[%emt 0:00:06]} Kd4 {[%emt 0:00:06]} 58. Kxc2 {[%emt 0:00:03]} e3 {[%emt 0:00:05]} 59. Kd1 {[%emt 0:00:17]} Kd3 {[%emt 0:00:07]} 60. b4 {[%emt 0:00:11]} b5 {[%emt 0:00:08]} 61. Ke1 {[%emt 0:00:22]} e2 {[%emt 0:00:04]} 62. Kf2 {[%emt 0:00:40]} Kd2 {[%emt 0:00:10]} 0-1

[Event "XIX Sants Open 2017"]
[Site "Cotxeres de Sants"]
[Date "2017.08.22"]
[Round "5"]
[White "Lopez Arjona, Emilio"]
[Black "Maza Navarro, Llorens"]
[Result "1/2-1/2"]
[ECO "B76"]
[WhiteElo "1547"]
[BlackElo "1542"]
[Annotator "NA RC"]
[PlyCount "163"]
[EventDate "2017.??.??"]
[EventType "swiss"]
[EventCountry "ESP"]
[SourceTitle "playchess.com"]
[Source "ChessBase"]
[SourceQuality "1"]
[TimeControl "40/5400+30:1800+30"]

1. e4 c5 2. Nf3 d6 3. d4 cxd4 4. Nxd4 Nf6 5. Nc3 g6 6. Be3 Bg7 7. f3 O-O 8. Qd2 Re8 9. O-O-O a6 10. h4 h5 11. Bc4 Nc6 12. Bb3 Bd7 13. Nde2 Na5 14. Kb1 Nxb3 15. cxb3 Qa5 16. Nf4 Rac8 17. Nfd5 Nxd5 18. Nxd5 Qxd2 19. Rxd2 Bc6 20. Nb6 Rb8 21. Rhd1 Kh7 22. Rd3 Bb5 23. R3d2 Bh6 24. Bxh6 Kxh6 25. f4 Bc6 26. Re1 Rbd8 27. g3 e6 28. Nc4 d5 29. Ne5 Kg7 30. exd5 Rxd5 31. Rxd5 exd5 32. Kc1 f6 33. Nd3 Rxe1+ 34. Nxe1 Kf7 35. Nc2 Ke6 36. Nd4+ Kd6 37. b4 b5 38. Kd2 f5 39. Ke3 Bd7 40. Nf3 Be6 41. Kd4 Bf7 42. Ne5 Be8 43. Nd3 Bd7 44. b3 Be6 45. Ne5 Kc7 46. Nxg6 Kb6 47. Nf8 Bg8 48. Nd7+ Kc6 49. Ne5+ Kd6 50. a4 Be6 51. Nd3 Bd7 52. a5 Bc8 53. Nf2 Be6 54. Nd1 Bf7 55. Nb2 Be6 56. Nd3 Bc8 57. Nc5 Kc6 58. Ke5 d4 59. Kxd4 Kd6 60. Nd3 Be6 61. Ne5 Bxb3 62. Nd3 Be6 63. Nf2 Bf7 64. Nd1 Bd5 65. Kd3 Be4+ 66. Kc3 Bf3 67. Ne3 Be4 68. Kd4 Bb1 69. Nd5 Be4 70. Nf6 Bf3 71. Ne8+ Ke7 72. Nc7 Bb7 73. Ke5 Bc8 74. Nxa6 Bxa6 75. Kxf5 Bb7 76. Ke5 Bc6 77. Kd4 Kd6 78. a6 Bf3 79. a7 Kc7 80. f5 Kb7 81. f6 Kxa7 82. f7 1/2-1/2

[Event "XIX Sants Open 2017"]
[Site "Cotxeres de Sants"]
[Date "2017.08.22"]
[Round "5"]
[White "Segura Ruiz, Carlos"]
[Black "Aparicio Escudero, Hector F"]
[Result "1-0"]
[ECO "A01"]
[WhiteElo "1414"]
[BlackElo "1641"]
[Annotator "NA RC"]
[PlyCount "167"]
[EventDate "2017.??.??"]
[EventType "swiss"]
[EventCountry "ESP"]
[SourceTitle "playchess.com"]
[Source "ChessBase"]
[SourceQuality "1"]
[TimeControl "40/5400+30:1800+30"]

1. b3 {[%emt 0:00:00]} e5 {[%emt 0:00:12]} 2. Bb2 {[%emt 0:00:00]} Nc6 {[%emt 0:00:14]} 3. e3 {[%emt 0:00:21]} d6 {[%emt 0:01:04]} 4. Bb5 {[%emt 0:00:26]} Bd7 {[%emt 0:00:18]} 5. d4 {[%emt 0:02:58]} exd4 {[%emt 0:01:18]} 6. exd4 {[%emt 0:00:31]} Qg5 {[%emt 0:02:20]} 7. Qe2+ {[%emt 0:01:46]} Nge7 {[%emt 0:07:09]} 8. g3 {[%emt 0:01:28]} Qd5 {[%emt 0:05:22]} 9. Nf3 {[%emt 0:04:43]} Bg4 {[%emt 0:05:56]} 10. Nbd2 {[%emt 0:00:20]} O-O-O {[%emt 0:01:53]} 11. O-O-O {[%emt 0:12:09]} Nf5 {[%emt 0:13:10]} 12. Bxc6 {[%emt 0:01:13]} Qxc6 {[%emt 0:01:40]} 13. h3 {[%emt 0:04:17]} Bxf3 {[%emt 0:04:56]} 14. Nxf3 {[%emt 0:00:34]} Re8 {[%emt 0:01:16]} 15. Qd3 {[%emt 0:01:24]} Qd7 {[%emt 0:01:06]} 16. g4 {[%emt 0:05:46]} Ne7 {[%emt 0:02:36]} 17. d5 {[%emt 0:15:36]} Ng6 {[%emt 0:02:54]} 18. Kb1 {[%emt 0:05:50]} Ne5 {[%emt 0:02:18]} 19. Nxe5 {[%emt 0:01:21]} dxe5 {[%emt 0:00:37]} 20. Rhe1 {[%emt 0:00:55]} Bd6 {[%emt 0:01:59]} 21. Re2 {[%emt 0:05:08]} h6 {[%emt 0:03:50]} 22. Rde1 {[%emt 0:00:40]} f6 {[%emt 0:00:33]} 23. Qg6 {[%emt 0:11:51]} Rhf8 {[%emt 0:05:48]} 24. f4 {[%emt 0:03:10]} Bb4 {[%emt 0:01:35]} 25. c3 {[%emt 0:00:50]} Bd6 {[%emt 0:00:47]} 26. Re4 {[%emt 0:02:45]} Qf7 {[%emt 0:01:01]} 27. Qxf7 {[%emt 0:03:45]} Rxf7 {[%emt 0:00:05]} 28. f5 {[%emt 0:00:20]} Rd8 {[%emt 0:01:47]} 29. h4 {[%emt 0:01:36]} Rfd7 {[%emt 0:01:33]} 30. Kc2 {[%emt 0:03:10]} Bc5 {[%emt 0:00:32]} 31. b4 {[%emt 0:01:06]} Bf2 {[%emt 0:00:18]} 32. R1e2 {[%emt 0:00:50]} Bxh4 {[%emt 0:00:18]} 33. c4 {[%emt 0:02:39]} Bg5 {[%emt 0:00:13]} 34. Bc1 {[%emt 0:03:12]} Bxc1 {[%emt 0:00:25]} 35. Kxc1 {[%emt 0:00:02]} c6 {[%emt 0:01:00]} 36. Rc2 {[%emt 0:01:18]} cxd5 {[%emt 0:01:45]} 37. cxd5+ {[%emt 0:00:17]} Rc7 {[%emt 0:02:20]} 38. Rec4 {[%emt 0:00:09]} Rxc4 {[%emt 0:00:19]} 39. Rxc4+ {[%emt 0:00:02]} Kd7 {[%emt 0:00:32]} 40. Kd2 {[%emt 0:00:00]} Rc8 {[%emt 0:00:30]} 41. Rc5 {[%emt 0:03:30]} b6 {[%emt 0:01:02]} 42. Rxc8 {[%emt 0:00:42]} Kxc8 {[%emt 0:00:01]} 43. b5 {[%emt 0:00:09]} Kd7 {[%emt 0:01:22]} 44. Kd3 {[%emt 0:02:09]} Kd6 {[%emt 0:00:23]} 45. Kc4 {[%emt 0:00:09]} e4 {[%emt 0:00:19]} 46. Kd4 {[%emt 0:00:14]} e3 {[%emt 0:00:09]} 47. Kxe3 {[%emt 0:00:02]} Kxd5 {[%emt 0:00:07]} 48. Kd3 {[%emt 0:00:18]} Ke5 {[%emt 0:01:07]} 49. Ke3 {[%emt 0:00:32]} h5 {[%emt 0:00:44]} 50. Kf3 {[%emt 0:00:44]} h4 {[%emt 0:00:26]} 51. a3 {[%emt 0:00:58]} Kd5 {[%emt 0:05:20]} 52. Kg2 {[%emt 0:00:08]} Kc5 {[%emt 0:00:09]} 53. Kh3 {[%emt 0:00:06]} Kxb5 {[%emt 0:00:17]} 54. Kxh4 {[%emt 0:00:09]} Ka4 {[%emt 0:01:29]} 55. Kh5 {[%emt 0:00:06]} Kxa3 {[%emt 0:00:34]} 56. Kg6 {[%emt 0:00:05]} b5 {[%emt 0:00:50]} 57. Kxg7 {[%emt 0:00:13]} b4 {[%emt 0:00:05]} 58. g5 {[%emt 0:02:50]} fxg5 {[%emt 0:01:35]} 59. f6 {[%emt 0:00:10]} b3 {[%emt 0:00:29]} 60. f7 {[%emt 0:00:07]} b2 {[%emt 0:02:28]} 61. f8=Q+ Ka2 62. Qf7+ {[%emt 0:02:07]} Kb1 {[%emt 0:02:12]} 63. Qxa7 {[%emt 0:06:00]} Kc1 {[%emt 0:01:45]} 64. Qc5+ {[%emt 0:00:59]} Kd1 {[%emt 0:02:09]} 65. Qf5 {[%emt 0:08:53]} Kc1 {[%emt 0:01:05]} 66. Qxg5+ {[%emt 0:02:04]} Kc2 {[%emt 0:00:16]} 67. Qf5+ {[%emt 0:01:44]} Kc1 {[%emt 0:00:20]} 68. Qc5+ {[%emt 0:01:46]} Kd1 {[%emt 0:01:21]} 69. Qb4 {[%emt 0:00:29]} Kc2 {[%emt 0:00:38]} 70. Qc4+ {[%emt 0:00:12]} Kd2 {[%emt 0:00:57]} 71. Qb3 {[%emt 0:00:17]} Kc1 {[%emt 0:00:18]} 72. Qc3+ {[%emt 0:00:07]} Kb1 {[%emt 0:00:26]} 73. Kf6 {[%emt 0:02:35]} Ka2 {[%emt 0:00:12]} 74. Qc2 {[%emt 0:00:34]} Ka1 {[%emt 0:00:13]} 75. Qa4+ {[%emt 0:00:07]} Kb1 {[%emt 0:00:09]} 76. Ke5 {[%emt 0:00:15]} Kc1 {[%emt 0:00:08]} 77. Qc4+ {[%emt 0:01:38]} Kd1 {[%emt 0:00:20]} 78. Qb3+ {[%emt 0:00:27]} Kc1 {[%emt 0:00:12]} 79. Qc3+ {[%emt 0:00:09]} Kb1 {[%emt 0:00:15]} 80. Kd4 {[%emt 0:00:25]} Ka2 {[%emt 0:00:14]} 81. Qc2 {[%emt 0:00:47]} Ka1 {[%emt 0:00:20]} 82. Qa4+ {[%emt 0:00:21]} Kb1 {[%emt 0:00:08]} 83. Kc3 {[%emt 0:00:21]} Kc1 {[%emt 0:00:30]} 84. Qc2# 1-0

[Event "XIX Sants Open 2017"]
[Site "Cotxeres de Sants"]
[Date "2017.08.23"]
[Round "6"]
[White "Petit Montes, Marc"]
[Black "Zverev, Lev"]
[Result "1/2-1/2"]
[ECO "C45"]
[WhiteElo "1948"]
[BlackElo "1372"]
[Annotator "NA RC"]
[PlyCount "70"]
[EventDate "2017.??.??"]
[EventType "swiss"]
[EventCountry "ESP"]
[SourceTitle "playchess.com"]
[Source "ChessBase"]
[SourceQuality "1"]
[TimeControl "40/5400+30:1800+30"]

1. e4 {[%emt 0:00:00]} e5 {[%emt 0:00:07]} 2. Nf3 {[%emt 0:00:00]} Nc6 {[%emt 0:00:08]} 3. d4 {[%emt 0:00:00]} exd4 {[%emt 0:00:11]} 4. Nxd4 {[%emt 0:00:28]} Bc5 {[%emt 0:00:10]} 5. Be3 {[%emt 0:00:37]} Qf6 {[%emt 0:00:09]} 6. Nb5 {[%emt 0:02:18]} Bxe3 {[%emt 0:00:44]} 7. fxe3 {[%emt 0:00:21]} Qd8 {[%emt 0:01:47] C45: Scotch Game} (7... Qh4+ 8. g3 Qd8 9. Qg4 g5 10. N1c3 d6 11. Qe2 Nf6 12. Bg2 a6 13. Nd4 Ne5 14. h3 Be6 15. O-O-O Qe7 16. Nd5 Nxd5 17. exd5 Bd7 18. Qe1 O-O-O 19. Rf1 {½-½ (19) Simacek,P (2441)-Malaniuk,V (2462) Ceske Budejovice 2015}) 8. Qg4 {[%emt 0:00:17]} g6 {[%emt 0:00:17]} 9. Qf4 {[%emt 0:00:50]} d6 {[%emt 0:00:21]} 10. Bc4 {[%emt 0:00:52]} Be6 {[%emt 0:00:59]} 11. Bxe6 {[%emt 0:01:51]} fxe6 {[%emt 0:00:10]} 12. O-O {[%emt 0:01:08]} Nge7 {[%emt 0:00:11]} 13. N1c3 {[%emt 0:41:02]} ({Much weaker is} 13. Qf7+ $6 Kd7 $11) 13... a6 {[%emt 0:02:36]} (13... g5 $16 {was worth a try.} 14. Qxg5 Kd7) 14. Nd4 {[%emt 0:01:26]} Nxd4 {[%emt 0:01:03]} 15. exd4 {[%emt 0:01:29]} Kd7 $146 {[%emt 0:00:19]} 16. Qf7 $2 {[%emt 0:04:43]} (16. Qg4 $18) 16... Qf8 {[%emt 0:00:21]} 17. d5 {[%emt 0:01:33]} Qxf7 {[%emt 0:00:18]} 18. Rxf7 {[%emt 0:00:08]} Raf8 {[%emt 0:00:28]} 19. Raf1 {[%emt 0:01:42]} Rxf7 {[%emt 0:00:18]} 20. Rxf7 {[%emt 0:00:08]} e5 {[%emt 0:02:22]} 21. Nd1 {[%emt 0:03:32]} Ke8 {[%emt 0:02:19]} 22. Rf3 {[%emt 0:00:21]} Rf8 {[%emt 0:00:08]} 23. Kf2 {[%emt 0:02:03]} Rxf3+ {[%emt 0:04:48]} 24. Kxf3 {[%emt 0:00:10]} Kf7 {[%emt 0:00:18]} 25. c4 {[%emt 0:01:02]} Ng8 {[%emt 0:02:12]} 26. b4 {[%emt 0:01:14]} Nf6 {[%emt 0:00:22]} 27. a4 {[%emt 0:02:30]} Ke7 {[%emt 0:00:22]} 28. a5 {[%emt 0:07:18]} Kd7 {[%emt 0:01:48]} 29. Ne3 {[%emt 0:02:20]} Ke7 {[%emt 0:02:43]} 30. Ng4 {[%emt 0:01:47]} Ng8 {[%emt 0:01:09]} 31. g3 {[%emt 0:02:09]} Kd7 {[%emt 0:03:42]} 32. Ne3 {[%emt 0:00:26]} Nf6 {[%emt 0:00:33]} 33. Ng4 {[%emt 0:00:34]} Ng8 {[%emt 0:00:10]} 34. Ne3 {[%emt 0:01:43]} Nf6 {[%emt 0:00:08]} 35. Ng4 $11 {[%emt 0:06:50]} Ke8 $2 1/2-1/2

[Event "XIX Sants Open 2017"]
[Site "Cotxeres de Sants"]
[Date "2017.08.23"]
[Round "6"]
[White "Alonso Gomez, Raul"]
[Black "Casset Bello, Elena"]
[Result "*"]
[ECO "B52"]
[WhiteElo "1938"]
[BlackElo "1936"]
[Annotator "NA RC"]
[PlyCount "35"]
[EventDate "2017.??.??"]
[EventType "swiss"]
[EventCountry "ESP"]
[SourceTitle "playchess.com"]
[Source "ChessBase"]
[SourceQuality "1"]
[TimeControl "40/5400+30:1800+30"]

{[%evp 15,31,22,6,12,8,-11,25,15,31,20,45,32767,32767,20,36,32767,32767,29]} 1. e4 {[%emt 0:00:00]} c5 {[%emt 0:02:24]} 2. Nf3 {[%emt 0:00:00]} d6 {[%emt 0:00:09]} 3. Bb5+ {[%emt 0:00:00]} Bd7 {[%emt 0:00:21]} 4. Bxd7+ {[%emt 0:00:00]} Nxd7 {[%emt 0:00:07]} 5. O-O {[%emt 0:00:06]} Ngf6 {[%emt 0:01:10]} 6. Qe2 {[%emt 0:00:06]} Rc8 {[%emt 0:04:23]} 7. b3 {[%emt 0:01:49]} g6 {[%emt 0:01:08]} 8. Bb2 {[%emt 0:00:18]} Bg7 {[%emt 0:00:11]} 9. d4 {[%emt 0:02:23]} cxd4 {[%emt 0:00:35]} 10. Nxd4 {[%emt 0:00:07]} O-O {[%emt 0:02:01]} 11. c4 {[%emt 0:00:15] LiveBook: 5 Games} Nc5 {[%emt 0:06:06]} 12. Nc3 {[%emt 0:03:01]} Nfd7 {[%emt 0:02:50]} 13. Rad1 {[%emt 0:00:42]} Re8 {[%emt 0:11:21]} 14. Kh1 {[%emt 0:02:18]} a6 $14 {[%emt 0:09:27]} 15. Qe3 {[%emt 0:15:37]} Nf6 {[%emt 0:15:59]} 16. f3 {[%emt 0:05:06]} Qb6 {[%emt 0:06:53]} 17. Qe2 {[%emt 0:08:53]} e6 {[%emt 0:04:28]} 18. Rfe1 {[%emt 0:02:12]} *

[Event "XIX Sants Open 2017"]
[Site "Cotxeres de Sants"]
[Date "2017.08.23"]
[Round "6"]
[White "Alonso Gomez, Raul"]
[Black "Casset Bello, Elena"]
[Result "0-1"]
[ECO "A06"]
[WhiteElo "1938"]
[BlackElo "1936"]
[Annotator "NA RC"]
[PlyCount "66"]
[EventDate "2017.??.??"]
[EventType "swiss"]
[EventCountry "ESP"]
[SourceTitle "playchess.com"]
[Source "ChessBase"]
[SourceQuality "1"]
[TimeControl "40/5400+30:1800+30"]

1. b3 {[%emt 0:00:00]} d5 {[%emt 0:01:05]} 2. Nf3 {[%emt 0:00:00]} Nf6 {[%emt 0:00:30]} 3. Bb2 {[%emt 0:00:00]} e6 {[%emt 0:01:58]} 4. e3 {[%emt 0:00:07]} Be7 {[%emt 0:00:57]} 5. c4 {[%emt 0:01:35]} O-O {[%emt 0:00:55]} 6. cxd5 {[%emt 0:02:13]} exd5 {[%emt 0:00:49]} 7. Be2 {[%emt 0:00:17]} c5 {[%emt 0:07:47]} 8. O-O {[%emt 0:06:20]} Nc6 {[%emt 0:00:40]} 9. d4 {[%emt 0:00:40]} Bg4 {[%emt 0:04:40]} 10. Nbd2 {[%emt 0:09:44]} Re8 {[%emt 0:05:23]} 11. Rc1 {[%emt 0:08:06]} cxd4 {[%emt 0:13:31]} 12. Nxd4 {[%emt 0:05:50]} Bd7 {[%emt 0:05:37]} 13. N2f3 {[%emt 0:03:19]} Nxd4 {[%emt 0:12:56]} 14. Nxd4 {[%emt 0:00:28]} a6 $14 {[%emt 0:04:26]} 15. Bf3 {[%emt 0:13:09]} Ne4 {[%emt 0:10:05]} 16. Qc2 {[%emt 0:09:19]} Rc8 {[%emt 0:02:01]} 17. Qd3 {[%emt 0:02:01]} Rxc1 {[%emt 0:00:33]} 18. Rxc1 {[%emt 0:00:14]} Bd6 {[%emt 0:06:04]} 19. g3 {[%emt 0:07:11]} Qf6 {[%emt 0:03:13]} 20. Rc2 {[%emt 0:11:39]} Qh6 {[%emt 0:00:42]} 21. Ne2 {[%emt 0:03:27]} Bf5 {[%emt 0:11:20]} 22. Qxd5 {[%emt 0:08:01]} Nxg3 {[%emt 0:01:48]} 23. Rd2 {[%emt 0:01:28]} Nxe2+ {[%emt 0:01:14]} 24. Rxe2 {[%emt 0:01:15]} Qxh2+ {[%emt 0:01:07]} 25. Kf1 {[%emt 0:00:14]} Bh3+ {[%emt 0:00:50]} 26. Ke1 {[%emt 0:04:02]} Bb4+ {[%emt 0:00:32]} 27. Kd1 {[%emt 0:01:37]} Qg1+ {[%emt 0:01:51]} 28. Kc2 {[%emt 0:00:02]} Rc8+ {[%emt 0:00:47]} 29. Kd3 {[%emt 0:00:36]} Qb1+ {[%emt 0:00:32]} 30. Kd4 {[%emt 0:01:06]} Qd1+ {[%emt 0:01:05]} 31. Ke4 {[%emt 0:00:23]} Qb1+ {[%emt 0:00:26]} 32. Kf4 {[%emt 0:00:28]} Qg6 {[%emt 0:00:33]} 33. Be4 {[%emt 0:01:08]} Qg4+ {[%emt 0:00:21] Bf3 Qg6} 0-1

[Event "XIX Sants Open 2017"]
[Site "Cotxeres de Sants"]
[Date "2017.08.23"]
[Round "6"]
[White "Sarto Ramos, Angel"]
[Black "Garcia Ruiz, Adrian"]
[Result "0-1"]
[ECO "A48"]
[WhiteElo "1932"]
[BlackElo "1940"]
[Annotator "NA RC"]
[PlyCount "91"]
[EventDate "2017.??.??"]
[EventType "swiss"]
[EventCountry "ESP"]
[SourceTitle "playchess.com"]
[Source "ChessBase"]
[SourceQuality "1"]
[TimeControl "40/5400+30:1800+30"]

1. d4 Nf6 2. Nf3 g6 3. Nc3 d6 4. Bg5 Bg7 5. Qd2 h6 6. Bh4 c6 7. h3 b5 8. e3 Qc7 9. Bd3 Bb7 10. O-O a6 11. Bg3 c5 12. dxc5 Qxc5 $14 13. Rad1 Nbd7 14. a3 O-O 15. Rfe1 Rac8 16. Nd4 Nb6 17. Nb3 Qc7 18. Be2 Nbd5 19. Nxd5 Bxd5 20. Bd3 Ne4 21. Bxe4 Bxe4 22. c3 Rb8 23. f3 Ba8 24. e4 a5 25. Bf2 b4 26. cxb4 axb4 27. a4 Qc4 28. Nd4 Qa6 29. b3 Rfc8 30. Rc1 Qa5 31. Ne2 d5 32. Bd4 dxe4 33. Bxg7 Kxg7 34. fxe4 Rd8 35. Qe3 Qe5 36. Nf4 Rd4 37. Nd3 Qxe4 38. Qxe4 Bxe4 39. Ne5 Bd5 40. Red1 Rxd1+ 41. Rxd1 e6 42. Rc1 f5 43. a5 Rb5 44. a6 Ra5 45. Rc2 Kf6 46. Rb2 {Kf7} 0-1